fUST/lending_fUST_20250302
["ID","MTS","AMOUNT","RATE_DAILY","PERIOD"]
[355039422,1740879054615,-12095.69,0.00024931,2]
[355039423,1740879054625,-403.85763096,0.00024931,2]
[355039424,1740879054634,-681.53,0.00024931,2]
[355039425,1740879054644,-500.0,0.00024931,2]
[355039426,1740879054653,-500.0,0.00024931,2]
[355039427,1740879054664,-500.0,0.00024931,2]
[355039428,1740879054673,-4178.4,0.00024931,2]
[355039429,1740879054683,-164.71571415,0.00024931,2]
[355039430,1740879054693,-500.0,0.00024931,2]
[355039431,1740879054703,-503.66122976,0.00024931,2]
[355039432,1740879054712,-1330.74,0.00024931,2]
[355039433,1740879054723,-500.0,0.00024931,2]
[355039434,1740879054733,-510.29,0.00024931,2]
[355039435,1740879054745,-500.0,0.00024931,2]
[355039436,1740879054756,-1275.17,0.00024931,2]
[355039437,1740879054766,-500.0,0.00024931,2]
[355039438,1740879054775,-2632.57,0.00024931,2]
[355039439,1740879054785,-500.0,0.00024931,2]
[355039440,1740879054796,-500.0,0.00024931,2]
[355039441,1740879054805,-500.0,0.00024931,2]
[355039442,1740879054815,-500.0,0.00024931,2]
[355039443,1740879054827,-3272.09,0.00024931,2]
[355039444,1740879054838,-500.0,0.00024931,2]
[355039445,1740879054848,-500.0,0.00024931,2]
[355039446,1740879054858,-6089.99,0.00024931,2]
[355039447,1740879054868,-500.0,0.00024931,2]
[355039448,1740879054878,-896.16,0.00024931,2]
[355039449,1740879054888,-2422.9,0.00024931,2]
[355039450,1740879054898,-500.0,0.00024931,2]
[355039451,1740879054908,-500.0,0.00024931,2]
[355039452,1740879054918,-500.0,0.00024931,2]
[355039453,1740879054928,-1792.97,0.00024931,2]
[355039454,1740879054937,-500.0,0.00024931,2]
[355039455,1740879054948,-500.0,0.00024931,2]
[355039456,1740879054959,-500.0,0.00024931,2]
[355039457,1740879054968,-500.0,0.00024931,2]
[355039458,1740879054978,-1799.99,0.00024931,2]
[355039459,1740879054988,-664.3,0.00024931,2]
[355039460,1740879054998,-500.0,0.00024931,2]
[355039461,1740879055008,-500.0,0.00024931,2]
[355039462,1740879055018,-551.87205177,0.00024931,2]
[355039463,1740879055028,-500.0,0.00024931,2]
[355039464,1740879055038,-500.0,0.00024931,2]
[355039465,1740879055048,-504.51595322,0.00024931,2]
[355039466,1740879055058,-19164.85,0.00024931,2]
[355039467,1740879055067,-500.0,0.00024931,2]
[355039468,1740879055077,-687.1,0.00024931,2]
[355039469,1740879055087,-500.0,0.00024931,2]
[355039470,1740879055097,-500.0,0.00024931,2]
[355039471,1740879055106,-14410.22,0.00024931,2]
[355039472,1740879055116,-500.0,0.00024931,2]
[355039473,1740879055125,-500.0,0.00024931,2]
[355039474,1740879055135,-500.0,0.00024931,2]
[355039475,1740879055145,-500.0,0.00024931,2]
[355039476,1740879055156,-500.0,0.00024931,2]
[355039477,1740879055166,-1792.12,0.00024931,2]
[355039478,1740879055176,-500.0,0.00024931,2]
[355039479,1740879055185,-500.0,0.00024931,2]
[355039480,1740879055195,-1461.2,0.00024931,2]
[355039481,1740879055206,-500.0,0.00024931,2]
[355039482,1740879055216,-500.0,0.00024931,2]
[355039483,1740879055226,-500.0,0.00024931,2]
[355039484,1740879055236,-500.0,0.00024931,2]
[355039485,1740879055246,-8901.6,0.00024931,2]
[355039486,1740879055258,-1405.11,0.00024931,2]
[355039487,1740879055271,-1231.32,0.00024931,2]
[355039488,1740879055281,-500.0,0.00024931,2]
[355039489,1740879055291,-500.0,0.00024931,2]
[355039490,1740879055301,-2321.88,0.00024931,2]
[355039491,1740879055312,-500.0,0.00024931,2]
[355039492,1740879055322,-954.26,0.00024931,2]
[355039493,1740879055332,-500.0,0.00024931,2]
[355039494,1740879055342,-500.0,0.00024931,2]
[355039495,1740879055352,-500.0,0.00024931,2]
[355039496,1740879055363,-1016.36,0.00024931,2]
[355039497,1740879055372,-500.0,0.00024931,2]
[355039498,1740879055383,-500.0,0.00024931,2]
[355039499,1740879055392,-500.0,0.00024931,2]
[355039500,1740879055403,-500.0,0.00024931,2]
[355039501,1740879055412,-500.0,0.00024931,2]
[355039502,1740879055422,-3999.53,0.00024931,2]
[355039503,1740879055432,-590.52,0.00024931,2]
[355039504,1740879055442,-5365.43,0.00024931,2]
[355039505,1740879055451,-666.73,0.00024931,2]
[355039506,1740879055461,-500.0,0.00024931,2]
[355039507,1740879055472,-500.0,0.00024931,2]
[355039508,1740879055482,-929.8,0.00024931,2]
[355039509,1740879055492,-500.0,0.00024931,2]
[355039510,1740879055502,-500.0,0.00024931,2]
[355039511,1740879055512,-500.0,0.00024931,2]
[355039512,1740879055522,-1435.64,0.00024931,5]
[355039513,1740879055532,-524.0,0.00024931,2]
[355039514,1740879055541,-500.0,0.00024931,2]
[355039515,1740879055551,-500.0,0.00024931,2]
[355039516,1740879055562,-500.0,0.00024931,2]
[355039517,1740879055573,-2215.83,0.00024931,2]
[355039518,1740879055583,-500.0,0.00024931,2]
[355039519,1740879055594,-500.0,0.00024931,2]
[355039520,1740879055604,-1787.09,0.00024931,2]
[355039521,1740879055614,-545.59,0.00024931,2]
[355039522,1740879055625,-8008.49,0.00024931,2]
[355039523,1740879055636,-502.9266679,0.00024931,2]
[355039524,1740879055848,-500.0,0.00024931,2]
[355039525,1740879055858,-1047.58,0.00024931,2]
[355039526,1740879055868,-500.0,0.00024931,2]
[355039527,1740879055878,-500.0,0.00024931,2]
[355039528,1740879055888,-672.95,0.00024931,2]
[355039529,1740879055897,-500.0,0.00024931,2]
[355039530,1740879055907,-1419.66,0.00024931,2]
[355039531,1740879055918,-500.0,0.00024931,2]
[355039532,1740879055928,-1183.92,0.00024931,2]
[355039533,1740879055938,-500.0,0.00024931,2]
[355039534,1740879055948,-500.0,0.00024931,2]
[355039535,1740879055957,-553.62,0.00024931,2]
[355039536,1740879055967,-927.13,0.00024931,2]
[355039537,1740879055976,-500.0,0.00024931,2]
[355039538,1740879055986,-1688.46,0.00024931,2]
[355039539,1740879055995,-500.0,0.00024931,2]
[355039540,1740879056005,-500.0,0.00024931,2]
[355039541,1740879056015,-1713.59,0.00024931,2]
[355039542,1740879056024,-1383.14,0.00024931,2]
[355039543,1740879056033,-500.0,0.00024931,2]
[355039544,1740879056043,-539.70988336,0.00024931,2]
[355039545,1740879056052,-500.0,0.00024931,2]
[355039546,1740879056063,-500.0,0.00024931,2]
[355039547,1740879056072,-500.0,0.00024931,2]
[355039548,1740879056082,-686.9,0.00024931,2]
[355039549,1740879056092,-502.95938668,0.00024931,2]
[355039550,1740879056102,-915.47,0.00024931,2]
[355039551,1740879056111,-500.0,0.00024931,2]
[355039552,1740879056121,-500.0,0.00024931,2]
[355039553,1740879056131,-1978.09,0.00024931,2]
[355039554,1740879056142,-470.39141204,0.00024931,2]
[355039555,1740879056151,-500.0,0.00024931,2]
[355039556,1740879056162,-3966.01,0.00024931,2]
[355039557,1740879056172,-1321.02,0.00024931,2]
[355039558,1740879056181,-1012.54,0.00024931,2]
[355039559,1740879056192,-500.0,0.00024931,2]
[355039560,1740879056206,-940.66,0.00024931,2]
[355039561,1740879056217,-501.58502566,0.00024931,2]
[355039562,1740879056226,-1879.68,0.00024931,2]
[355039563,1740879056236,-500.0,0.00024931,2]
[355039564,1740879056246,-3778.48,0.00024931,2]
[355039565,1740879056256,-519.4773465,0.00024931,2]
[355039566,1740879056266,-1315.43,0.00024931,2]
[355039567,1740879056275,-500.0,0.00024931,2]
[355039568,1740879056285,-500.0,0.00024931,2]
[355039569,1740879056294,-500.0,0.00024931,2]
[355039570,1740879056304,-1000.0,0.00024931,2]
[355039571,1740879056314,-500.0,0.00024931,2]
[355039572,1740879056323,-500.0,0.00024931,2]
[355039573,1740879056332,-500.0,0.00024931,2]
[355039574,1740879056342,-500.0,0.00024931,2]
[355039575,1740879056352,-521.13,0.00024931,2]
[355039576,1740879056361,-500.0,0.00024931,2]
[355039577,1740879056371,-7346.2,0.00024931,2]
[355039578,1740879056381,-500.0,0.00024931,2]
[355039579,1740879056390,-654.9,0.00024931,2]
[355039580,1740879056400,-2816.3,0.00024931,2]
[355039581,1740879056410,-500.0,0.00024931,2]
[355039582,1740879056419,-500.0,0.00024931,2]
[355039583,1740879056429,-500.0,0.00024931,2]
[355039584,1740879056439,-500.0,0.00024931,2]
[355039585,1740879056448,-16797.07,0.00024931,2]
[355039586,1740879056457,-500.0,0.00024931,2]
[355039587,1740879056467,-500.0,0.00024931,2]
[355039588,1740879056476,-722.54,0.00024931,2]
[355039589,1740879056486,-500.0,0.00024931,2]
[355039590,1740879056496,-500.0,0.00024931,2]
[355039591,1740879056507,-500.0,0.00024931,2]
[355039592,1740879056517,-500.0,0.00024931,2]
[355039593,1740879056526,-500.0,0.00024931,2]
[355039594,1740879056536,-2221.84,0.00024931,2]
[355039595,1740879056546,-500.0,0.00024931,2]
[355039596,1740879056555,-1851.45,0.00024931,2]
[355039597,1740879056565,-502.60772376,0.00024931,2]
[355039598,1740879056575,-500.0,0.00024931,2]
[355039599,1740879056584,-18973.49,0.00024931,2]
[355039600,1740879056594,-501.85842214,0.00024931,2]
[355039601,1740879056604,-500.0,0.00024931,2]
[355039602,1740879056613,-500.0,0.00024931,2]
[355039603,1740879056623,-583.22,0.00024931,2]
[355039604,1740879056633,-500.0,0.00024931,2]
[355039605,1740879056643,-500.0,0.00024931,2]
[355039606,1740879056652,-500.0,0.00024931,2]
[355039607,1740879056662,-500.0,0.00024931,2]
[355039608,1740879056671,-500.0,0.00024931,2]
[355039609,1740879056681,-500.0,0.00024931,2]
[355039610,1740879056690,-500.0,0.00024931,2]
[355039611,1740879056700,-2023.15,0.00024931,2]
[355039612,1740879056709,-546.98,0.00024931,2]
[355039613,1740879056719,-696.3,0.00024931,2]
[355039614,1740879056728,-500.0,0.00024931,2]
[355039615,1740879056738,-500.0,0.00024931,2]
[355039616,1740879056748,-500.0,0.00024931,2]
[355039617,1740879056760,-150.0,0.00024932,2]
[355039618,1740879056770,-404.99680781,0.00024942,2]
[355039619,1740879056779,-500.0,0.00024973,2]
[355039620,1740879056790,-500.0,0.00024973,2]
[355039621,1740879056800,-500.0,0.00024973,2]
[355039622,1740879056810,-160.0,0.00024973,2]
[355039623,1740879056820,-150.86461303,0.00024973,2]
[355039624,1740879056829,-420.0,0.00024973,2]
[355039625,1740879056839,-500.0,0.00024973,2]
[355039626,1740879056848,-500.0,0.00024973,2]
[355039627,1740879056858,-384.39116885,0.00024973,2]
[355039628,1740879056867,-491.60779993,0.00024973,2]
[355039629,1740879056878,-500.0,0.00024973,2]
[355039630,1740879056889,-500.0,0.00024973,2]
[355039631,1740879056899,-500.0,0.00024973,2]
[355039632,1740879056908,-500.0,0.00024973,2]
[355039633,1740879056918,-500.0,0.00024973,2]
[355039634,1740879056928,-500.0,0.00024973,2]
[355039635,1740879056938,-300.20962099,0.00024973,2]
[355039636,1740879056947,-500.0,0.00024973,2]
[355039637,1740879056956,-504.34516954,0.00024973,2]
[355039638,1740879056966,-367.80974713,0.00024973,2]
[355039639,1740879056975,-500.0,0.00024973,2]
[355039640,1740879056984,-500.0,0.00024973,2]
[355039641,1740879056994,-500.0,0.00024973,2]
[355039642,1740879057004,-500.0,0.00024973,2]
[355039643,1740879057013,-501.75957197,0.00024973,2]
[355039644,1740879057023,-198.68961882,0.00024973,2]
[355039645,1740879057032,-500.0,0.00024973,2]
[355039646,1740879057041,-500.0,0.00024973,2]
[355039647,1740879057051,-500.0,0.00024973,2]
[355039648,1740879057060,-500.0,0.00024973,2]
[355039649,1740879057069,-500.0,0.00024973,2]
[355039650,1740879057079,-500.0,0.00024973,2]
[355039651,1740879057088,-500.0,0.00024973,2]
[355039652,1740879057097,-582.38731466,0.00024973,2]
[355039653,1740879057107,-501.64607517,0.00024973,2]
[355039654,1740879057118,-500.0,0.00024973,2]
[355039655,1740879057127,-500.0,0.00024973,2]
[355039656,1740879057136,-504.21014934,0.00024973,2]
[355039657,1740879057145,-166.53339194,0.00024973,2]
[355039658,1740879057154,-500.0,0.00024973,2]
[355039659,1740879057164,-500.0,0.00024973,2]
[355039660,1740879057174,-163.80508101,0.00024973,2]
[355039661,1740879057183,-500.0,0.00024973,2]
[355039662,1740879057193,-262.31571404,0.00024973,2]
[355039663,1740879057203,-500.0,0.00024973,2]
[355039664,1740879057213,-500.0,0.00024973,2]
[355039665,1740879057222,-503.53510008,0.00024973,2]
[355039666,1740879057232,-198.96375911,0.00024973,2]
[355039667,1740879057241,-479.74694146,0.00024973,2]
[355039668,1740879057252,-500.0,0.00024973,2]
[355039669,1740879057261,-500.0,0.00024973,2]
[355039670,1740879057271,-500.0,0.00024973,2]
[355039671,1740879057281,-500.0,0.00024973,2]
[355039672,1740879057290,-500.0,0.00024973,2]
[355039673,1740879057299,-601.49243505,0.00024973,2]
[355039674,1740879057309,-500.0,0.00024973,2]
[355039675,1740879057318,-500.14967682,0.00024973,2]
[355039676,1740879057328,-628.68351215,0.00024973,2]
[355039677,1740879057338,-5000.0,0.00025,2]
[355039678,1740879057348,-6666.66,0.00025,2]
[355039679,1740879057357,-6666.66,0.00025,2]
[355039680,1740879057367,-6666.66666667,0.00025,2]
[355039681,1740879057376,-150.0,0.00025,2]
[355039682,1740879057386,-6666.66666667,0.00025,2]
[355039683,1740879057396,-500.0,0.00025,2]
[355039684,1740879057405,-19624.61182001,0.00025,3]
[355039685,1740879057415,-1048.22856826,0.00025,2]
[355039686,1740879057424,-2581.94705709,0.00025,2]
[355039687,1740879057434,-10364.0,0.00025,2]
[355039688,1740879057444,-160.0,0.00025,3]
[355039689,1740879057453,-160.0,0.00025,3]
[355039690,1740879057463,-225.82198703,0.00025,4]
[355039691,1740879057473,-500.0,0.000251,2]
[355039692,1740879057483,-350.0,0.00025174,3]
[355039693,1740879057492,-315.0,0.00025174,3]
[355039694,1740879057503,-160.0,0.00025182,31]
[355039695,1740879057512,-500.0,0.000252,2]
[355039696,1740879057521,-500.0,0.00025205,2]
[355039697,1740879057531,-623.5975962,0.00025205,2]
[355039698,1740879057541,-151.0,0.00025205,7]
[355039699,1740879057551,-151.0,0.00025205,7]
[355039700,1740879057561,-151.0,0.00025205,7]
[355039701,1740879057571,-151.0,0.00025205,7]
[355039702,1740879057582,-156.337886,0.00025205,7]
[355039703,1740879057591,-500.0,0.00025205,2]
[355039704,1740879057601,-500.0,0.00025205,2]
[355039705,1740879057610,-500.0,0.00025205,2]
[355039706,1740879057620,-500.0,0.00025205,2]
[355039707,1740879057629,-1166.84,0.00025205,2]
[355039708,1740879057639,-500.0,0.00025205,2]
[355039709,1740879057648,-500.0,0.00025205,2]
[355039710,1740879057658,-500.0,0.00025205,2]
[355039711,1740879057667,-508.68432404,0.00025205,2]
[355039712,1740879057678,-500.0,0.00025205,2]
[355039713,1740879057687,-500.0,0.00025205,2]
[355039714,1740879057697,-231.37695266,0.00025205,2]
[355039715,1740879057706,-500.0,0.00025205,2]
[355039716,1740879057716,-500.0,0.00025205,2]
[355039717,1740879057725,-500.0,0.00025205,2]
[355039718,1740879057735,-500.0,0.00025205,2]
[355039719,1740879057745,-500.0,0.00025205,2]
[355039720,1740879057755,-500.0,0.00025205,2]
[355039721,1740879057767,-500.0,0.00025205,2]
[355039722,1740879057776,-524.175367,0.00025205,2]
[355039723,1740879057786,-500.0,0.00025205,2]
[355039724,1740879057798,-500.0,0.00025205,2]
[355039725,1740879057807,-500.0,0.00025205,2]
[355039726,1740879057818,-529.76,0.00025205,2]
[355039727,1740879057827,-553.01,0.00025205,2]
[355039728,1740879057838,-500.0,0.00025205,2]
[355039729,1740879057848,-500.0,0.00025205,2]
[355039730,1740879057858,-500.0,0.00025205,2]
[355039731,1740879057867,-500.0,0.00025205,2]
[355039732,1740879057877,-500.0,0.00025205,2]
[355039733,1740879057887,-500.0,0.00025205,2]
[355039734,1740879057897,-500.0,0.00025205,2]
[355039735,1740879057906,-500.0,0.00025205,2]
[355039736,1740879057916,-500.0,0.00025205,2]
[355039737,1740879057925,-518.98597681,0.00025205,2]
[355039738,1740879057935,-500.0,0.00025205,2]
[355039739,1740879057945,-500.0,0.00025205,2]
[355039740,1740879057954,-500.0,0.00025205,2]
[355039741,1740879057970,-500.0,0.00025205,2]
[355039742,1740879057982,-151.89046714,0.00025205,2]
[355039743,1740879057991,-834.67,0.00025205,2]
[355039744,1740879058000,-500.0,0.00025205,2]
[355039745,1740879058012,-500.0,0.00025205,2]
[355039746,1740879058022,-791.41,0.00025205,2]
[355039747,1740879058031,-500.0,0.00025205,2]
[355039748,1740879058040,-500.0,0.00025205,2]
[355039749,1740879058050,-500.0,0.00025205,2]
[355039750,1740879058059,-500.0,0.00025205,2]
[355039751,1740879058069,-200.0,0.00025205,2]
[355039752,1740879058078,-586.21,0.00025205,2]
[355039753,1740879058088,-500.0,0.00025205,2]
[355039754,1740879058097,-500.0,0.00025205,2]
[355039755,1740879058107,-641.35,0.00025205,2]
[355039756,1740879058116,-500.0,0.00025205,2]
[355039757,1740879058125,-500.0,0.00025205,2]
[355039758,1740879058135,-780.84,0.00025205,2]
[355039759,1740879058145,-500.0,0.00025205,2]
[355039760,1740879058155,-1010.03,0.00025205,2]
[355039761,1740879058244,-500.0,0.00025205,2]
[355039762,1740879058254,-500.0,0.00025205,2]
[355039763,1740879058264,-630.05,0.00025205,2]
[355039764,1740879058274,-500.0,0.00025205,2]
[355039765,1740879058284,-500.0,0.00025205,2]
[355039766,1740879058294,-364.97873975,0.00025205,2]
[355039767,1740879058303,-500.0,0.00025205,2]
[355039768,1740879058312,-500.0,0.00025205,2]
[355039769,1740879058321,-500.0,0.00025205,2]
[355039770,1740879058331,-567.96,0.00025205,2]
[355039771,1740879058340,-500.0,0.00025205,2]
[355039772,1740879058349,-923.05,0.00025205,2]
[355039773,1740879058359,-500.0,0.00025205,2]
[355039774,1740879058367,-500.0,0.00025205,2]
[355039775,1740879058377,-500.0,0.00025205,2]
[355039776,1740879058386,-500.0,0.00025205,2]
[355039777,1740879058395,-534.34,0.00025205,2]
[355039778,1740879058404,-1219.47,0.00025205,2]
[355039779,1740879058414,-215.396,0.00025205,9]
[355039780,1740879058423,-500.0,0.00025205,2]
[355039781,1740879058432,-500.0,0.00025205,2]
[355039782,1740879058442,-692.23,0.00025205,2]
[355039783,1740879058451,-500.0,0.00025205,2]
[355039784,1740879058461,-500.0,0.00025205,2]
[355039785,1740879058471,-500.0,0.00025205,2]
[355039786,1740879058480,-1123.88,0.00025205,2]
[355039787,1740879058489,-500.0,0.00025205,2]
[355039788,1740879058498,-511.38424557,0.00025205,2]
[355039789,1740879058507,-500.0,0.00025205,2]
[355039790,1740879058516,-500.0,0.00025205,2]
[355039791,1740879058525,-500.0,0.00025205,2]
[355039792,1740879058535,-500.0,0.00025205,2]
[355039793,1740879058544,-500.0,0.00025205,2]
[355039794,1740879058553,-500.0,0.00025205,2]
[355039795,1740879058562,-500.87,0.00025205,2]
[355039796,1740879058572,-500.0,0.00025205,2]
[355039797,1740879058580,-500.0,0.00025205,2]
[355039798,1740879058590,-500.0,0.00025205,2]
[355039799,1740879058599,-500.0,0.00025205,2]
[355039800,1740879058608,-500.0,0.00025205,2]
[355039801,1740879058617,-606.15,0.00025205,2]
[355039802,1740879058627,-976.64,0.00025205,2]
[355039803,1740879058636,-1480.65,0.00025205,2]
[355039804,1740879058645,-500.0,0.00025205,2]
[355039805,1740879058654,-500.0,0.00025205,2]
[355039806,1740879058663,-500.0,0.00025205,2]
[355039807,1740879058674,-1035.01,0.00025205,2]
[355039808,1740879058685,-500.0,0.00025205,2]
[355039809,1740879058694,-797.6,0.00025205,2]
[355039810,1740879058703,-500.0,0.00025205,2]
[355039811,1740879058712,-500.0,0.00025205,2]
[355039812,1740879058723,-500.0,0.00025205,2]
[355039813,1740879058733,-500.0,0.00025205,2]
[355039814,1740879058751,-500.0,0.00025205,2]
[355039815,1740879058765,-571.077431,0.00025205,2]
[355039816,1740879058778,-151.0,0.00025205,7]
[355039817,1740879058787,-546.03,0.00025205,2]
[355039818,1740879058797,-500.0,0.00025205,2]
[355039819,1740879058808,-500.0,0.00025205,2]
[355039820,1740879058818,-500.0,0.00025205,2]
[355039821,1740879058828,-500.0,0.00025205,2]
[355039822,1740879058838,-500.0,0.00025205,2]
[355039823,1740879058847,-500.0,0.00025205,2]
[355039824,1740879058856,-500.0,0.00025205,2]
[355039825,1740879058865,-1108.97,0.00025205,2]
[355039826,1740879058875,-678.8,0.00025205,2]
[355039827,1740879058884,-500.0,0.00025205,2]
[355039828,1740879058894,-1456.12,0.00025205,2]
[355039829,1740879058903,-1412.95,0.00025205,2]
[355039830,1740879058924,-500.0,0.00025205,2]
[355039831,1740879058934,-790.75,0.00025205,2]
[355039832,1740879058944,-568.49,0.00025205,2]
[355039833,1740879058953,-500.0,0.00025205,2]
[355039834,1740879058962,-500.0,0.00025205,2]
[355039835,1740879058971,-840.92,0.00025205,2]
[355039836,1740879058981,-500.0,0.00025205,2]
[355039837,1740879058990,-550.18,0.00025205,2]
[355039838,1740879058999,-151.0,0.00025205,7]
[355039839,1740879059009,-500.0,0.00025205,2]
[355039840,1740879059018,-151.0,0.00025205,7]
[355039841,1740879059029,-499.638185,0.00025205,7]
[355039842,1740879059038,-500.0,0.00025205,2]
[355039843,1740879059047,-499.638185,0.00025205,7]
[355039844,1740879059056,-500.0,0.00025205,2]
[355039845,1740879059066,-504.13983412,0.00025205,2]
[355039846,1740879059075,-500.0,0.00025205,2]
[355039847,1740879059084,-500.0,0.00025205,2]
[355039848,1740879059093,-500.0,0.00025205,2]
[355039849,1740879059102,-632.5,0.00025205,2]
[355039850,1740879059111,-500.0,0.00025205,2]
[355039851,1740879059120,-1237.3,0.00025205,2]
[355039852,1740879059129,-855.71,0.00025205,2]
[355039853,1740879059138,-500.0,0.00025205,2]
[355039854,1740879059147,-500.0,0.00025205,2]
[355039855,1740879059156,-500.0,0.00025205,2]
[355039856,1740879059166,-614.18,0.00025205,2]
[355039857,1740879059176,-572.77,0.00025205,2]
[355039858,1740879059185,-500.0,0.00025205,2]
[355039859,1740879059194,-1853.6,0.00025205,2]
[355039860,1740879059203,-500.0,0.00025205,2]
[355039861,1740879059212,-500.0,0.00025205,2]
[355039862,1740879059221,-500.0,0.00025205,2]
[355039863,1740879059230,-500.0,0.00025205,2]
[355039864,1740879059239,-318.20195733,0.00025205,2]
[355039865,1740879059248,-500.0,0.00025205,2]
[355039866,1740879059257,-1973.28,0.00025205,2]
[355039867,1740879059266,-1740.77,0.00025205,2]
[355039868,1740879059275,-1229.28,0.00025205,2]
[355039869,1740879059284,-500.0,0.00025205,2]
[355039870,1740879059294,-500.0,0.00025205,2]
[355039871,1740879059303,-500.0,0.00025205,2]
[355039872,1740879059312,-500.0,0.00025205,2]
[355039873,1740879059321,-500.0,0.00025205,2]
[355039874,1740879059330,-500.0,0.00025205,2]
[355039875,1740879059339,-1058.84,0.00025205,2]
[355039876,1740879059348,-500.0,0.00025205,2]
[355039877,1740879059357,-500.0,0.00025205,2]
[355039878,1740879059366,-500.0,0.00025205,2]
[355039879,1740879059375,-500.0,0.00025205,2]
[355039880,1740879059384,-500.0,0.00025205,2]
[355039881,1740879059393,-500.0,0.00025205,2]
[355039882,1740879059402,-302.51797588,0.00025205,2]
[355039883,1740879059411,-1760.85,0.00025205,2]
[355039884,1740879059420,-580.75058238,0.00025205,2]
[355039885,1740879059430,-500.0,0.00025205,2]
[355039886,1740879059439,-500.0,0.00025205,2]
[355039887,1740879059448,-763.8,0.00025205,2]
[355039888,1740879059457,-535.91,0.00025205,2]
[355039889,1740879059467,-500.0,0.00025205,2]
[355039890,1740879059476,-518.81,0.00025205,2]
[355039891,1740879059485,-500.0,0.00025205,2]
[355039892,1740879059494,-789.87,0.00025205,2]
[355039893,1740879059504,-1169.18,0.00025205,2]
[355039894,1740879059513,-823.54,0.00025205,2]
[355039895,1740879059522,-727.61,0.00025205,2]
[355039896,1740879059531,-500.0,0.00025205,2]
[355039897,1740879059540,-500.0,0.00025205,2]
[355039898,1740879059550,-500.0,0.00025205,2]
[355039899,1740879059559,-500.0,0.00025205,2]
[355039900,1740879059568,-500.0,0.00025205,2]
[355039901,1740879059578,-500.0,0.00025205,2]
[355039902,1740879059587,-500.0,0.00025205,2]
[355039903,1740879059596,-679.28,0.00025205,2]
[355039904,1740879059606,-162.635591,0.00025205,7]
[355039905,1740879059615,-162.635591,0.00025205,7]
[355039906,1740879059625,-1156.15,0.00025205,2]
[355039907,1740879059634,-500.0,0.00025205,2]
[355039908,1740879059644,-500.0,0.00025205,2]
[355039909,1740879059653,-500.0,0.00025205,2]
[355039910,1740879059662,-643.8,0.00025205,2]
[355039911,1740879059671,-500.0,0.00025205,2]
[355039912,1740879059680,-500.0,0.00025205,2]
[355039913,1740879059689,-500.0,0.00025205,2]
[355039914,1740879059699,-500.0,0.00025205,2]
[355039915,1740879059708,-526.48143405,0.00025205,2]
[355039916,1740879059717,-500.0,0.00025205,2]
[355039917,1740879059726,-500.0,0.00025205,2]
[355039918,1740879059735,-500.0,0.00025205,2]
[355039919,1740879059748,-2965.91,0.00025205,2]
[355039920,1740879059758,-500.0,0.00025205,2]
[355039921,1740879059767,-500.0,0.00025205,2]